[Event "*** Titled Tuesday Blitz"]
[Site "Chess.com"]
[Date "2020.11.03"]
[Round "4"]
[White "Chopper1905"]
[Black "tdf98pantani"]
[Result "1/2-1/2"]
[WhiteElo "2920"]
[BlackElo "2702"]
[TimeControl "180+1"]
[EndTime "10:43:27 PST"]
[Termination "Game drawn - insufficient material"]

1. d4 {[%clk 0:02:38.5]} 1... d5 {[%clk 0:02:55.2]} 2. Bf4 {[%clk 0:02:38.2]}
2... c5 {[%clk 0:02:54.5]} 3. e3 {[%clk 0:02:38.4]} 3... Nc6 {[%clk 0:02:54.7]}
4. c3 {[%clk 0:02:37.8]} 4... e6 {[%clk 0:02:54.5]} 5. Nd2 {[%clk 0:02:37.7]}
5... Bd6 {[%clk 0:02:54.3]} 6. Ngf3 {[%clk 0:02:35.8]} 6... Nge7 {[%clk
0:02:54.3]} 7. Bd3 {[%clk 0:02:33.4]} 7... b6 {[%clk 0:02:46]} 8. O-O {[%clk
0:02:33]} 8... Bb7 {[%clk 0:02:45.7]} 9. Qe2 {[%clk 0:02:32.9]} 9... Ng6 {[%clk
0:02:29.3]} 10. Bg3 {[%clk 0:02:18.5]} 10... O-O {[%clk 0:02:28.5]} 11. Rad1
{[%clk 0:02:14.5]} 11... c4 {[%clk 0:02:23.8]} 12. Bxg6 {[%clk 0:02:04.9]} 12...
hxg6 {[%clk 0:02:20.5]} 13. Bxd6 {[%clk 0:02:03.2]} 13... Qxd6 {[%clk
0:02:20.5]} 14. e4 {[%clk 0:02:03.9]} 14... Qf4 {[%clk 0:02:13.9]} 15. Rfe1
{[%clk 0:01:58.4]} 15... b5 {[%clk 0:02:05.9]} 16. e5 {[%clk 0:01:48.3]} 16...
Rae8 {[%clk 0:02:03.9]} 17. Nf1 {[%clk 0:01:47.6]} 17... f6 {[%clk 0:02:03.1]}
18. Rd2 {[%clk 0:01:40.7]} 18... g5 {[%clk 0:02:01.2]} 19. h3 {[%clk 0:01:39.3]}
19... Bc8 {[%clk 0:01:47.5]} 20. Qd1 {[%clk 0:01:31.4]} 20... Qf5 {[%clk
0:01:42.5]} 21. Rde2 {[%clk 0:01:26.2]} 21... Rf7 {[%clk 0:01:38.5]} 22. Ne3
{[%clk 0:01:23.7]} 22... Qd3 {[%clk 0:01:23.5]} 23. exf6 {[%clk 0:01:21.6]}
23... gxf6 {[%clk 0:01:20.1]} 24. Nxd5 {[%clk 0:01:20.2]} 24... Qg6 {[%clk
0:01:09.8]} 25. Ne3 {[%clk 0:01:14.8]} 25... Rd8 {[%clk 0:00:59.8]} 26. Qc2
{[%clk 0:01:05.3]} 26... Qg7 {[%clk 0:00:55.4]} 27. Ng4 {[%clk 0:00:58.9]} 27...
Ne7 {[%clk 0:00:51.1]} 28. a4 {[%clk 0:00:41.8]} 28... a6 {[%clk 0:00:49.2]} 29.
axb5 {[%clk 0:00:41.8]} 29... axb5 {[%clk 0:00:50.1]} 30. Ne3 {[%clk 0:00:38.5]}
30... Bb7 {[%clk 0:00:48.4]} 31. d5 {[%clk 0:00:36.7]} 31... Nxd5 {[%clk
0:00:45.3]} 32. Nxd5 {[%clk 0:00:35.2]} 32... Bxd5 {[%clk 0:00:45.4]} 33. Nd4
{[%clk 0:00:35.8]} 33... e5 {[%clk 0:00:38.3]} 34. Nf5 {[%clk 0:00:36.2]} 34...
Qh7 {[%clk 0:00:37.6]} 35. Rd2 {[%clk 0:00:18.1]} 35... Rfd7 {[%clk 0:00:37.7]}
36. Red1 {[%clk 0:00:13.6]} 36... Be6 {[%clk 0:00:37.9]} 37. Rxd7 {[%clk
0:00:14.1]} 37... Rxd7 {[%clk 0:00:37.8]} 38. Rxd7 {[%clk 0:00:14.2]} 38... Qxd7
{[%clk 0:00:33.6]} 39. Ne3 {[%clk 0:00:13]} 39... f5 {[%clk 0:00:33.8]} 40. g4
{[%clk 0:00:10.6]} 40... e4 {[%clk 0:00:29.9]} 41. gxf5 {[%clk 0:00:10.4]} 41...
Bxf5 {[%clk 0:00:30.5]} 42. f3 {[%clk 0:00:06.6]} 42... Bg6 {[%clk 0:00:25.6]}
43. Ng4 {[%clk 0:00:04.2]} 43... Qd6 {[%clk 0:00:19.8]} 44. fxe4 {[%clk
0:00:03.7]} 44... Qg3+ {[%clk 0:00:19.9]} 45. Qg2 {[%clk 0:00:04]} 45... Qe1+
{[%clk 0:00:19.5]} 46. Qf1 {[%clk 0:00:04.6]} 46... Qg3+ {[%clk 0:00:18.7]} 47.
Qg2 {[%clk 0:00:05.1]} 47... Qxg2+ {[%clk 0:00:14.8]} 48. Kxg2 {[%clk 0:00:06]}
48... Bxe4+ {[%clk 0:00:15.3]} 49. Kf2 {[%clk 0:00:06.5]} 49... Kg7 {[%clk
0:00:15.3]} 50. Ne5 {[%clk 0:00:06.1]} 50... Kf6 {[%clk 0:00:14]} 51. Nd7+
{[%clk 0:00:06.3]} 51... Kf5 {[%clk 0:00:13.2]} 52. Kg3 {[%clk 0:00:06.4]} 52...
Bc6 {[%clk 0:00:12.8]} 53. Nc5 {[%clk 0:00:03.9]} 53... Ke5 {[%clk 0:00:10.9]}
54. Kg4 {[%clk 0:00:04.2]} 54... Kd5 {[%clk 0:00:11.1]} 55. Na6 {[%clk
0:00:04.6]} 55... Bd7+ {[%clk 0:00:10.3]} 56. Kxg5 {[%clk 0:00:03.9]} 56... Bxh3
{[%clk 0:00:10.5]} 57. Kf6 {[%clk 0:00:04.4]} 57... Ke4 {[%clk 0:00:10.6]} 58.
Ke7 {[%clk 0:00:04.4]} 58... Kd3 {[%clk 0:00:11]} 59. Nb4+ {[%clk 0:00:03.5]}
59... Kd2 {[%clk 0:00:11]} 60. Kd6 {[%clk 0:00:04.4]} 60... Kc1 {[%clk
0:00:10.4]} 61. Kc6 {[%clk 0:00:03.8]} 61... Kxb2 {[%clk 0:00:08.2]} 62. Kxb5
{[%clk 0:00:03.9]} 62... Kxc3 {[%clk 0:00:08.5]} 63. Kc5 {[%clk 0:00:03.6]}
63... Bg2 {[%clk 0:00:05.6]} 64. Na2+ {[%clk 0:00:02.3]} 64... Kb3 {[%clk
0:00:03.1]} 65. Nc1+ {[%clk 0:00:02.8]} 65... Kc2 {[%clk 0:00:03.3]} 66. Kxc4
{[%clk 0:00:02.8]} 1/2-1/2

[Event "*** Titled Tuesday Blitz"]
[Site "Chess.com"]
[Date "2020.11.03"]
[Round "4"]
[White "Everyfishknows"]
[Black "Ashedu66"]
[Result "1/2-1/2"]
[WhiteElo "2412"]
[BlackElo "2241"]
[TimeControl "180+1"]
[EndTime "10:43:34 PST"]
[Termination "Game drawn - insufficient material"]

1. Nf3 {[%clk 0:03:00.9]} 1... d5 {[%clk 0:02:59.6]} 2. c4 {[%clk 0:03:00.3]}
2... e6 {[%clk 0:02:59]} 3. b3 {[%clk 0:03:00.1]} 3... Nf6 {[%clk 0:02:59.2]} 4.
g3 {[%clk 0:02:59.9]} 4... Be7 {[%clk 0:02:59.1]} 5. Bg2 {[%clk 0:02:59.9]} 5...
O-O {[%clk 0:02:59.2]} 6. O-O {[%clk 0:03:00.5]} 6... c6 {[%clk 0:02:56.8]} 7.
Bb2 {[%clk 0:03:00.2]} 7... a5 {[%clk 0:02:56.9]} 8. d4 {[%clk 0:02:57.7]} 8...
a4 {[%clk 0:02:55.7]} 9. Nc3 {[%clk 0:02:57.9]} 9... a3 {[%clk 0:02:55.1]} 10.
Bc1 {[%clk 0:02:58.1]} 10... Qa5 {[%clk 0:02:38]} 11. Bd2 {[%clk 0:02:55.3]}
11... Qa6 {[%clk 0:02:37.6]} 12. Ne5 {[%clk 0:02:52.5]} 12... Nbd7 {[%clk
0:02:34.2]} 13. Nxd7 {[%clk 0:02:41.5]} 13... Bxd7 {[%clk 0:02:31.6]} 14. c5
{[%clk 0:02:39.4]} 14... b6 {[%clk 0:02:28.3]} 15. cxb6 {[%clk 0:02:36.7]} 15...
Qxb6 {[%clk 0:02:28.3]} 16. e3 {[%clk 0:02:33.7]} 16... c5 {[%clk 0:02:27.6]}
17. dxc5 {[%clk 0:02:33.2]} 17... Bxc5 {[%clk 0:02:27.1]} 18. Rc1 {[%clk
0:02:29.2]} 18... Rac8 {[%clk 0:02:11.3]} 19. Qe2 {[%clk 0:02:23.7]} 19... Rfd8
{[%clk 0:01:57.4]} 20. Rc2 {[%clk 0:02:23.2]} 20... Bf8 {[%clk 0:01:33.4]} 21.
Rfc1 {[%clk 0:02:21.3]} 21... h6 {[%clk 0:01:23.6]} 22. Na4 {[%clk 0:02:09.2]}
22... Qb8 {[%clk 0:01:21.8]} 23. Nc5 {[%clk 0:02:05.4]} 23... Bb5 {[%clk
0:01:18.7]} 24. Qe1 {[%clk 0:02:04.5]} 24... Bxc5 {[%clk 0:01:10.7]} 25. Rxc5
{[%clk 0:02:04.4]} 25... Rxc5 {[%clk 0:01:00.5]} 26. Rxc5 {[%clk 0:02:05.3]}
26... Ne4 {[%clk 0:00:58.4]} 27. Bxe4 {[%clk 0:02:04.2]} 27... dxe4 {[%clk
0:00:58.1]} 28. Ba5 {[%clk 0:02:02]} 28... Rd7 {[%clk 0:00:30.4]} 29. Qc1 {[%clk
0:01:47.8]} 29... Kh7 {[%clk 0:00:27]} 30. h3 {[%clk 0:01:45.2]} 30... Qd6
{[%clk 0:00:21.5]} 31. Rc2 {[%clk 0:01:31]} 31... Qd1+ {[%clk 0:00:19.5]} 32.
Qxd1 {[%clk 0:01:31]} 32... Rxd1+ {[%clk 0:00:19.4]} 33. Kh2 {[%clk 0:01:31.4]}
33... Rb1 {[%clk 0:00:18.3]} 34. Bc3 {[%clk 0:01:20.2]} 34... Bd3 {[%clk
0:00:16.1]} 35. Rd2 {[%clk 0:01:20.5]} 35... f5 {[%clk 0:00:15.3]} 36. f4 {[%clk
0:01:09]} 36... g5 {[%clk 0:00:13.5]} 37. Kg2 {[%clk 0:01:07.9]} 37... Kg6
{[%clk 0:00:13.5]} 38. Kf2 {[%clk 0:01:07.6]} 38... h5 {[%clk 0:00:13.7]} 39.
Bb4 {[%clk 0:01:00.6]} 39... h4 {[%clk 0:00:12.6]} 40. gxh4 {[%clk 0:00:54.8]}
40... gxf4 {[%clk 0:00:12.2]} 41. exf4 {[%clk 0:00:55.4]} 41... Rf1+ {[%clk
0:00:11.2]} 42. Ke3 {[%clk 0:00:54.3]} 42... Rf3+ {[%clk 0:00:10.3]} 43. Kd4
{[%clk 0:00:54.8]} 43... Rxf4 {[%clk 0:00:10.4]} 44. Bxa3 {[%clk 0:00:50.4]}
44... Rxh4 {[%clk 0:00:09.7]} 45. Bd6 {[%clk 0:00:42]} 45... Kf7 {[%clk
0:00:09.3]} 46. Rh2 {[%clk 0:00:24]} 46... Ke8 {[%clk 0:00:09]} 47. Ke5 {[%clk
0:00:18.8]} 47... Kd7 {[%clk 0:00:08.8]} 48. Bc5 {[%clk 0:00:19.2]} 48... Kc6
{[%clk 0:00:08.1]} 49. Bf2 {[%clk 0:00:18.8]} 49... Rh8 {[%clk 0:00:07.5]} 50.
h4 {[%clk 0:00:18.3]} 50... Rd8 {[%clk 0:00:06.8]} 51. h5 {[%clk 0:00:17.6]}
51... Rd5+ {[%clk 0:00:06.9]} 52. Kf4 {[%clk 0:00:18.2]} 52... e5+ {[%clk
0:00:06.6]} 53. Kg5 {[%clk 0:00:15.7]} 53... f4 {[%clk 0:00:06.1]} 54. h6 {[%clk
0:00:15.7]} 54... e3 {[%clk 0:00:06.5]} 55. Be1 {[%clk 0:00:15.7]} 55... Bh7
{[%clk 0:00:06]} 56. Kf6 {[%clk 0:00:07.6]} 56... f3 {[%clk 0:00:05.6]} 57. Kg7
{[%clk 0:00:07.7]} 57... Rd7+ {[%clk 0:00:05.9]} 58. Kf6 {[%clk 0:00:07.8]}
58... e4 {[%clk 0:00:06.2]} 59. Rc2+ {[%clk 0:00:04.7]} 59... Kb7 {[%clk
0:00:05.5]} 60. Ke5 {[%clk 0:00:04.3]} 60... f2 {[%clk 0:00:05.6]} 61. Bxf2
{[%clk 0:00:04.5]} 61... exf2 {[%clk 0:00:05.9]} 62. Rxf2 {[%clk 0:00:05.4]}
62... Re7+ {[%clk 0:00:05.6]} 63. Kf6 {[%clk 0:00:05]} 63... Rd7 {[%clk
0:00:05.3]} 64. Rg2 {[%clk 0:00:04.5]} 64... Kc6 {[%clk 0:00:04.4]} 65. Ke5
{[%clk 0:00:02.4]} 65... e3 {[%clk 0:00:04.4]} 66. Kf4 {[%clk 0:00:02.2]} 66...
Rd2 {[%clk 0:00:03.2]} 67. Rg1 {[%clk 0:00:02.7]} 67... e2 {[%clk 0:00:03.1]}
68. Re1 {[%clk 0:00:02.9]} 68... Rxa2 {[%clk 0:00:03.2]} 69. Ke3 {[%clk
0:00:03.1]} 69... Kd5 {[%clk 0:00:03.4]} 70. Rxe2 {[%clk 0:00:03.6]} 70... Rxe2+
{[%clk 0:00:03.4]} 71. Kxe2 {[%clk 0:00:04.5]} 71... Kc5 {[%clk 0:00:03.8]} 72.
Kd2 {[%clk 0:00:05.4]} 72... Kb4 {[%clk 0:00:04.1]} 73. Ke3 {[%clk 0:00:05.9]}
73... Kxb3 {[%clk 0:00:04.4]} 74. Kf4 {[%clk 0:00:06.8]} 74... Kc4 {[%clk
0:00:04.7]} 75. Ke5 {[%clk 0:00:07.7]} 75... Kc5 {[%clk 0:00:04.6]} 76. Kf6
{[%clk 0:00:08.6]} 76... Bb1 {[%clk 0:00:04.7]} 77. Kg7 {[%clk 0:00:09.5]} 77...
Kd6 {[%clk 0:00:05]} 78. h7 {[%clk 0:00:10.4]} 78... Bxh7 {[%clk 0:00:04.7]}
1/2-1/2

[Event "*** Titled Tuesday Blitz"]
[Site "Chess.com"]
[Date "2020.11.03"]
[Round "4"]
[White "Lagmantr"]
[Black "ChSalas"]
[Result "1/2-1/2"]
[WhiteElo "2715"]
[BlackElo "2517"]
[TimeControl "180+1"]
[EndTime "10:43:35 PST"]
[Termination "Game drawn by repetition"]

1. e4 {[%clk 0:03:00.9]} 1... e5 {[%clk 0:02:58.7]} 2. Nf3 {[%clk 0:03:01.4]}
2... Nc6 {[%clk 0:02:57.9]} 3. Nc3 {[%clk 0:03:02]} 3... Nf6 {[%clk 0:02:56.4]}
4. Be2 {[%clk 0:03:02.6]} 4... Bc5 {[%clk 0:02:46.4]} 5. Nxe5 {[%clk 0:03:02.5]}
5... Nxe5 {[%clk 0:02:35.8]} 6. d4 {[%clk 0:03:02.9]} 6... Bd6 {[%clk
0:02:35.5]} 7. dxe5 {[%clk 0:03:03.1]} 7... Bxe5 {[%clk 0:02:36]} 8. Nb5 {[%clk
0:03:03.8]} 8... c6 {[%clk 0:02:27.7]} 9. Nd6+ {[%clk 0:03:02.4]} 9... Bxd6
{[%clk 0:02:26.5]} 10. Qxd6 {[%clk 0:03:03.3]} 10... Qa5+ {[%clk 0:02:06.8]} 11.
c3 {[%clk 0:02:45.2]} 11... Nxe4 {[%clk 0:01:58]} 12. Qd4 {[%clk 0:02:44.6]}
12... Nf6 {[%clk 0:01:56.8]} 13. Qe3+ {[%clk 0:02:45.1]} 13... Kf8 {[%clk
0:01:48.9]} 14. O-O {[%clk 0:02:43.6]} 14... d5 {[%clk 0:01:48]} 15. Re1 {[%clk
0:02:38.6]} 15... Be6 {[%clk 0:01:46.7]} 16. Bd2 {[%clk 0:02:38]} 16... Qb6
{[%clk 0:01:43]} 17. Qd3 {[%clk 0:02:29.2]} 17... Re8 {[%clk 0:01:00.1]} 18. Be3
{[%clk 0:02:28.3]} 18... Qc7 {[%clk 0:00:55.5]} 19. Bxa7 {[%clk 0:02:25.2]}
19... b6 {[%clk 0:00:43.7]} 20. Qa6 {[%clk 0:01:46.9]} 20... Nd7 {[%clk
0:00:42.7]} 21. Qa3+ {[%clk 0:01:46.5]} 21... c5 {[%clk 0:00:22.4]} 22. b4
{[%clk 0:01:13.7]} 22... c4 {[%clk 0:00:20]} 23. b5+ {[%clk 0:01:03.9]} 23...
Kg8 {[%clk 0:00:20.2]} 24. Bg4 {[%clk 0:01:04.1]} 24... h5 {[%clk 0:00:20.7]}
25. Bh3 {[%clk 0:01:00.4]} 25... Kh7 {[%clk 0:00:19]} 26. Bxe6 {[%clk
0:00:41.5]} 26... fxe6 {[%clk 0:00:19.9]} 27. Qa4 {[%clk 0:00:36.4]} 27... Nc5
{[%clk 0:00:19.6]} 28. Qc2+ {[%clk 0:00:24.9]} 28... g6 {[%clk 0:00:19.9]} 29.
Bxb6 {[%clk 0:00:23.2]} 29... Qxb6 {[%clk 0:00:19.7]} 30. a4 {[%clk 0:00:23.8]}
30... Nd3 {[%clk 0:00:19.8]} 31. Reb1 {[%clk 0:00:22.9]} 31... Rhf8 {[%clk
0:00:19.9]} 32. a5 {[%clk 0:00:22.2]} 32... Qc5 {[%clk 0:00:20.1]} 33. Rf1
{[%clk 0:00:16.3]} 33... Qxb5 {[%clk 0:00:20.3]} 34. a6 {[%clk 0:00:16.4]} 34...
Qc5 {[%clk 0:00:20.7]} 35. Qe2 {[%clk 0:00:13.1]} 35... Rf7 {[%clk 0:00:20]} 36.
Ra2 {[%clk 0:00:12.5]} 36... Ra7 {[%clk 0:00:19.9]} 37. g4 {[%clk 0:00:09.4]}
37... hxg4 {[%clk 0:00:19.4]} 38. Qxg4 {[%clk 0:00:10.3]} 38... Kg7 {[%clk
0:00:20.1]} 39. Kh1 {[%clk 0:00:09.5]} 39... Qc6 {[%clk 0:00:20]} 40. Rg1 {[%clk
0:00:09.3]} 40... e5 {[%clk 0:00:20.5]} 41. f3 {[%clk 0:00:07.7]} 41... d4
{[%clk 0:00:20.5]} 42. cxd4 {[%clk 0:00:06.8]} 42... c3 {[%clk 0:00:21]} 43. d5
{[%clk 0:00:06.4]} 43... Qd6 {[%clk 0:00:20.3]} 44. Rag2 {[%clk 0:00:06.3]}
44... Nf4 {[%clk 0:00:20.2]} 45. Rc2 {[%clk 0:00:05.4]} 45... Qxd5 {[%clk
0:00:20.3]} 46. Rxc3 {[%clk 0:00:05.4]} 46... Ree7 {[%clk 0:00:18.7]} 47. Rc2
{[%clk 0:00:04.9]} 47... Rxa6 {[%clk 0:00:18.9]} 48. Rc8 {[%clk 0:00:05.1]}
48... Rf6 {[%clk 0:00:18.9]} 49. Qh4 {[%clk 0:00:05.5]} 49... Nh5 {[%clk
0:00:18.7]} 50. Qxh5 {[%clk 0:00:05.5]} 50... Qxf3+ {[%clk 0:00:18]} 51. Qxf3
{[%clk 0:00:06.1]} 51... Rxf3 {[%clk 0:00:18.9]} 52. Rc6 {[%clk 0:00:06.6]}
52... e4 {[%clk 0:00:19.3]} 53. Rcxg6+ {[%clk 0:00:06.6]} 53... Kf7 {[%clk
0:00:20.2]} 54. Rg7+ {[%clk 0:00:07]} 54... Ke8 {[%clk 0:00:20.7]} 55. Rg8+
{[%clk 0:00:07.1]} 55... Kd7 {[%clk 0:00:20.6]} 56. Rd1+ {[%clk 0:00:07.7]}
56... Ke6 {[%clk 0:00:21.1]} 57. Rg4 {[%clk 0:00:06.8]} 57... Ke5 {[%clk
0:00:21.4]} 58. Rg5+ {[%clk 0:00:06.9]} 58... Kf4 {[%clk 0:00:21.8]} 59. Rdd5
{[%clk 0:00:07]} 59... e3 {[%clk 0:00:21.5]} 60. Kg2 {[%clk 0:00:05.2]} 60...
Rf2+ {[%clk 0:00:21.7]} 61. Kg1 {[%clk 0:00:05]} 61... Kf3 {[%clk 0:00:22.2]}
62. Rdf5+ {[%clk 0:00:04.2]} 62... Ke2 {[%clk 0:00:22.5]} 63. Ra5 {[%clk
0:00:02.4]} 63... Rd7 {[%clk 0:00:22.2]} 64. Ra2+ {[%clk 0:00:02.5]} 64... Rd2
{[%clk 0:00:22.6]} 65. Rxd2+ {[%clk 0:00:02.7]} 65... Kxd2 {[%clk 0:00:23]} 66.
Rd5+ {[%clk 0:00:02.7]} 66... Ke2 {[%clk 0:00:23.3]} 67. h4 {[%clk 0:00:03.3]}
67... Rf6 {[%clk 0:00:23.1]} 68. h5 {[%clk 0:00:03.7]} 68... Kf3 {[%clk
0:00:23.5]} 69. Kf1 {[%clk 0:00:03.9]} 69... Ra6 {[%clk 0:00:22.8]} 70. Rf5+
{[%clk 0:00:03.6]} 70... Ke4 {[%clk 0:00:22.2]} 71. Rf8 {[%clk 0:00:04.2]} 71...
Ra1+ {[%clk 0:00:19.9]} 72. Ke2 {[%clk 0:00:04.4]} 72... Ra2+ {[%clk 0:00:20.8]}
73. Ke1 {[%clk 0:00:04.9]} 73... Rh2 {[%clk 0:00:21.2]} 74. Re8+ {[%clk
0:00:05.1]} 74... Kf3 {[%clk 0:00:21.4]} 75. Rf8+ {[%clk 0:00:05.3]} 75... Kg4
{[%clk 0:00:21.8]} 76. Re8 {[%clk 0:00:05]} 76... Kf4 {[%clk 0:00:21.9]} 77.
Rf8+ {[%clk 0:00:05.2]} 77... Ke4 {[%clk 0:00:21.6]} 78. Rh8 {[%clk 0:00:04.7]}
78... Kf3 {[%clk 0:00:20.1]} 79. Rf8+ {[%clk 0:00:04.2]} 79... Ke4 {[%clk
0:00:20.1]} 1/2-1/2

[Event "*** Titled Tuesday Blitz"]
[Site "Chess.com"]
[Date "2020.11.03"]
[Round "4"]
[White "Indianlad"]
[Black "sjam6687"]
[Result "1-0"]
[WhiteElo "2948"]
[BlackElo "2711"]
[TimeControl "180+1"]
[EndTime "10:43:36 PST"]
[Termination "Indianlad won on time"]

1. b3 {[%clk 0:02:58.8]} 1... d5 {[%clk 0:02:59.6]} 2. Bb2 {[%clk 0:02:59]} 2...
Nf6 {[%clk 0:02:56.1]} 3. Nf3 {[%clk 0:02:56.7]} 3... Bf5 {[%clk 0:02:53.3]} 4.
g3 {[%clk 0:02:55.8]} 4... e6 {[%clk 0:02:52.7]} 5. Bg2 {[%clk 0:02:56.4]} 5...
Be7 {[%clk 0:02:51.1]} 6. O-O {[%clk 0:02:56.9]} 6... O-O {[%clk 0:02:50.3]} 7.
d3 {[%clk 0:02:55.7]} 7... h6 {[%clk 0:02:48.6]} 8. Nbd2 {[%clk 0:02:55.9]} 8...
Nbd7 {[%clk 0:02:48.6]} 9. Ne5 {[%clk 0:02:55.1]} 9... Nxe5 {[%clk 0:02:45.6]}
10. Bxe5 {[%clk 0:02:55.5]} 10... c5 {[%clk 0:02:44.8]} 11. e4 {[%clk
0:02:54.9]} 11... Bh7 {[%clk 0:02:44.2]} 12. Qe2 {[%clk 0:02:54.8]} 12... Rc8
{[%clk 0:02:40.7]} 13. Rae1 {[%clk 0:02:53.7]} 13... Nd7 {[%clk 0:02:34.7]} 14.
Bb2 {[%clk 0:02:34.6]} 14... d4 {[%clk 0:02:31.6]} 15. f4 {[%clk 0:02:32.8]}
15... b5 {[%clk 0:02:24.4]} 16. Ra1 {[%clk 0:02:27.5]} 16... a5 {[%clk
0:02:21.7]} 17. a4 {[%clk 0:02:27.6]} 17... b4 {[%clk 0:02:21.6]} 18. Kh1 {[%clk
0:02:26.9]} 18... Qc7 {[%clk 0:02:06]} 19. Rae1 {[%clk 0:02:26.5]} 19... Nb6
{[%clk 0:02:04.2]} 20. h4 {[%clk 0:02:25.8]} 20... Bd6 {[%clk 0:02:00]} 21. Kh2
{[%clk 0:02:15.9]} 21... e5 {[%clk 0:01:56.2]} 22. f5 {[%clk 0:02:03]} 22... f6
{[%clk 0:01:52.4]} 23. g4 {[%clk 0:02:01.7]} 23... Be7 {[%clk 0:01:46.8]} 24.
Rh1 {[%clk 0:02:01.9]} 24... Kf7 {[%clk 0:01:42.8]} 25. Reg1 {[%clk 0:02:02.1]}
25... Ke8 {[%clk 0:01:40.8]} 26. Kg3 {[%clk 0:02:02.7]} 26... Kd7 {[%clk
0:01:39.3]} 27. Kf2 {[%clk 0:02:03.4]} 27... Kc6 {[%clk 0:01:37.5]} 28. Nf3
{[%clk 0:02:01.7]} 28... Bg8 {[%clk 0:01:34.9]} 29. g5 {[%clk 0:02:01.1]} 29...
fxg5 {[%clk 0:01:31.2]} 30. hxg5 {[%clk 0:02:01.5]} 30... hxg5 {[%clk
0:01:31.8]} 31. Bh3 {[%clk 0:02:00.8]} 31... Nd7 {[%clk 0:01:26]} 32. Ke1 {[%clk
0:01:59.9]} 32... Kb7 {[%clk 0:01:22.4]} 33. Bc1 {[%clk 0:01:59.9]} 33... Qd8
{[%clk 0:01:16.5]} 34. Bxg5 {[%clk 0:01:50.6]} 34... Bf6 {[%clk 0:01:13.4]} 35.
Kd1 {[%clk 0:01:49.5]} 35... Bf7 {[%clk 0:01:11.8]} 36. Bd2 {[%clk 0:01:49.2]}
36... c4 {[%clk 0:01:07.7]} 37. dxc4 {[%clk 0:01:43.1]} 37... Nc5 {[%clk
0:01:06.7]} 38. Ne1 {[%clk 0:01:43.7]} 38... Nxa4 {[%clk 0:00:57.3]} 39. bxa4
{[%clk 0:01:42.2]} 39... Bxc4 {[%clk 0:00:57.1]} 40. Qf3 {[%clk 0:01:37.3]}
40... Qe7 {[%clk 0:00:52.1]} 41. Bf1 {[%clk 0:01:36.9]} 41... Rfd8 {[%clk
0:00:48.3]} 42. Bxc4 {[%clk 0:01:36.2]} 42... Rxc4 {[%clk 0:00:49.2]} 43. Qd3
{[%clk 0:01:36.4]} 43... Qc5 {[%clk 0:00:47.2]} 44. Rh7 {[%clk 0:01:34.1]} 44...
Rd7 {[%clk 0:00:45.4]} 45. Rg6 {[%clk 0:01:34.3]} 45... Rc7 {[%clk 0:00:43.8]}
46. Bg5 {[%clk 0:01:20.9]} 46... Bxg5 {[%clk 0:00:19.9]} 47. Rxg5 {[%clk
0:01:21]} 47... Rc3 {[%clk 0:00:19.8]} 48. Qb5+ {[%clk 0:01:17]} 48... Qxb5
{[%clk 0:00:17.9]} 49. axb5 {[%clk 0:01:17.9]} 49... Kb6 {[%clk 0:00:16.8]} 50.
Rgxg7 {[%clk 0:01:16.1]} 50... Rxg7 {[%clk 0:00:17.7]} 51. Rxg7 {[%clk
0:01:16.4]} 51... d3 {[%clk 0:00:17.1]} 52. Nxd3 {[%clk 0:01:08.8]} 52... b3
{[%clk 0:00:16.9]} 53. Rg1 {[%clk 0:00:36]} 53... a4 {[%clk 0:00:14.8]} 54. f6
{[%clk 0:00:28.6]} 54... a3 {[%clk 0:00:13]} 55. f7 {[%clk 0:00:22.3]} 55... a2
{[%clk 0:00:10.7]} 56. Kd2 {[%clk 0:00:22.6]} 56... Rxc2+ {[%clk 0:00:09.1]} 57.
Ke3 {[%clk 0:00:22.5]} 57... Rc8 {[%clk 0:00:10]} 58. Nxe5 {[%clk 0:00:04.3]}
58... Kxb5 {[%clk 0:00:08.1]} 59. Nd3 {[%clk 0:00:03.1]} 59... Rf8 {[%clk
0:00:05]} 60. e5 {[%clk 0:00:01.9]} 60... Rxf7 {[%clk 0:00:04.9]} 61. Kd4 {[%clk
0:00:02.8]} 61... Ra7 {[%clk 0:00:02.8]} 62. Ra1 {[%clk 0:00:01.8]} 1-0